[Event "*** Titled Tuesday Blitz"]
[Site "Chess.com"]
[Date "2019.05.07"]
[Round "4"]
[White "GHANDEEVAM2003"]
[Black "GrigorGrigorov"]
[Result "1-0"]
[WhiteElo "2877"]
[BlackElo "2826"]
[TimeControl "180+2"]
[EndTime "13:59:18 PDT"]
[Termination "GHANDEEVAM2003 won by resignation"]

1. d4 {[%clk 0:03:01.9]} 1... Nf6 {[%clk 0:03:00.8]} 2. Bf4 {[%clk 0:03:02.1]}
2... e6 {[%clk 0:03:01.4]} 3. Nd2 {[%clk 0:03:02.5]} 3... d5 {[%clk 0:03:02.3]}
4. e3 {[%clk 0:03:02.4]} 4... Bd6 {[%clk 0:03:03.3]} 5. Ngf3 {[%clk 0:03:03.4]}
5... O-O {[%clk 0:03:04]} 6. Bd3 {[%clk 0:03:04.7]} 6... b6 {[%clk 0:03:04.9]}
7. Ne5 {[%clk 0:03:03.4]} 7... c5 {[%clk 0:03:05.1]} 8. c3 {[%clk 0:03:03.7]}
8... Ba6 {[%clk 0:03:04.8]} 9. Qe2 {[%clk 0:02:52.4]} 9... Bxd3 {[%clk 0:03:04]}
10. Qxd3 {[%clk 0:02:54.3]} 10... Qc7 {[%clk 0:03:03.7]} 11. Bg3 {[%clk
0:02:49.1]} 11... Nc6 {[%clk 0:02:57.4]} 12. f4 {[%clk 0:02:48.4]} 12... Ne7
{[%clk 0:02:38.8]} 13. Bh4 {[%clk 0:02:40.1]} 13... Ne8 {[%clk 0:02:39.6]} 14.
O-O {[%clk 0:02:31.4]} 14... f6 {[%clk 0:02:38.7]} 15. Nef3 {[%clk 0:02:29]}
15... cxd4 {[%clk 0:01:59.5]} 16. Nxd4 {[%clk 0:02:28.8]} 16... Qd7 {[%clk
0:01:56.3]} 17. e4 {[%clk 0:02:18.7]} 17... Nc7 {[%clk 0:01:52.2]} 18. Rae1
{[%clk 0:02:09.4]} 18... dxe4 {[%clk 0:01:25.2]} 19. Nxe4 {[%clk 0:00:54.6]}
19... Bc5 {[%clk 0:01:25.2]} 20. Rd1 {[%clk 0:00:44.6]} 20... Rad8 {[%clk
0:01:21.6]} 21. Bf2 {[%clk 0:00:38.6]} 21... Nf5 {[%clk 0:01:16.1]} 22. Qe2
{[%clk 0:00:32.1]} 22... Bxd4 {[%clk 0:01:15.4]} 23. Bxd4 {[%clk 0:00:34]} 23...
Qc6 {[%clk 0:01:11.5]} 24. Bf2 {[%clk 0:00:19.1]} 24... Nd5 {[%clk 0:01:12.3]}
25. Qf3 {[%clk 0:00:19.2]} 25... Rd7 {[%clk 0:01:00.4]} 26. b3 {[%clk
0:00:19.3]} 26... Rfd8 {[%clk 0:00:59.1]} 27. c4 {[%clk 0:00:20.3]} 27... Nb4
{[%clk 0:00:57.5]} 28. Rxd7 {[%clk 0:00:19.3]} 28... Qxd7 {[%clk 0:00:58.4]} 29.
a3 {[%clk 0:00:18.7]} 29... Nc2 {[%clk 0:00:55.1]} 30. b4 {[%clk 0:00:19.7]}
30... Qa4 {[%clk 0:00:31]} 31. Qg4 {[%clk 0:00:16.9]} 31... Kh8 {[%clk
0:00:21.6]} 32. Rd1 {[%clk 0:00:18.4]} 32... Qe8 {[%clk 0:00:18.1]} 33. c5
{[%clk 0:00:15.2]} 33... Nxa3 {[%clk 0:00:18.2]} 34. cxb6 {[%clk 0:00:15.2]}
34... axb6 {[%clk 0:00:17.3]} 35. Bxb6 {[%clk 0:00:17.1]} 35... Rxd1+ {[%clk
0:00:18.2]} 36. Qxd1 {[%clk 0:00:19]} 36... Nb5 {[%clk 0:00:17.2]} 37. Qd3
{[%clk 0:00:15.9]} 37... h6 {[%clk 0:00:17.2]} 38. Bc5 {[%clk 0:00:16.4]} 38...
Qc6 {[%clk 0:00:16.8]} 39. h3 {[%clk 0:00:15.2]} 39... Nc7 {[%clk 0:00:12.8]}
40. Nc3 {[%clk 0:00:14.4]} 40... Nh4 {[%clk 0:00:13]} 41. Qg3 {[%clk 0:00:14.2]}
41... Nf5 {[%clk 0:00:13.2]} 42. Qf2 {[%clk 0:00:14.6]} 42... Nb5 {[%clk
0:00:13.6]} 43. Nxb5 {[%clk 0:00:13.7]} 43... Qxb5 {[%clk 0:00:15.5]} 44. Qe1
{[%clk 0:00:15.2]} 44... Qc4 {[%clk 0:00:14.3]} 45. Qf2 {[%clk 0:00:12.5]} 45...
h5 {[%clk 0:00:13.9]} 46. g3 {[%clk 0:00:11.7]} 46... Qd3 {[%clk 0:00:14]} 47.
Kh2 {[%clk 0:00:11.6]} 47... Kh7 {[%clk 0:00:15]} 48. Qg2 {[%clk 0:00:09.8]}
48... h4 {[%clk 0:00:14.6]} 49. g4 {[%clk 0:00:09.1]} 49... Ng3 {[%clk
0:00:15.7]} 50. Bf2 {[%clk 0:00:10.5]} 50... Ne2 {[%clk 0:00:15.2]} 51. g5
{[%clk 0:00:08.7]} 51... Nxf4 {[%clk 0:00:14.9]} 52. Qg4 {[%clk 0:00:10.1]}
52... Ng6 {[%clk 0:00:12.4]} 53. gxf6 {[%clk 0:00:09.7]} 53... gxf6 {[%clk
0:00:12.3]} 54. Bxh4 {[%clk 0:00:11]} 54... f5 {[%clk 0:00:13.8]} 55. Qh5+
{[%clk 0:00:10.5]} 55... Kg7 {[%clk 0:00:15.2]} 56. Qg5 {[%clk 0:00:11.9]} 56...
Qe2+ {[%clk 0:00:13.5]} 57. Kg1 {[%clk 0:00:13.1]} 57... Qd1+ {[%clk 0:00:13.6]}
58. Kg2 {[%clk 0:00:13.1]} 58... Qc2+ {[%clk 0:00:13.9]} 59. Bf2 {[%clk
0:00:13.2]} 59... Qc6+ {[%clk 0:00:13.4]} 60. Kg1 {[%clk 0:00:13]} 60... Kf7
{[%clk 0:00:14.6]} 61. h4 {[%clk 0:00:13]} 61... Ne5 {[%clk 0:00:14.8]} 62. Qh5+
{[%clk 0:00:13.3]} 62... Ng6 {[%clk 0:00:12.8]} 63. Qh7+ {[%clk 0:00:11.8]}
63... Kf6 {[%clk 0:00:14.2]} 64. h5 {[%clk 0:00:13.1]} 64... Nf4 {[%clk
0:00:12.9]} 65. Qh6+ {[%clk 0:00:10.6]} 65... Ke5 {[%clk 0:00:13]} 66. Qg7+
{[%clk 0:00:10.9]} 66... Ke4 {[%clk 0:00:11.2]} 67. Qd4+ {[%clk 0:00:10.5]}
67... Kf3 {[%clk 0:00:12.6]} 68. Qe3+ {[%clk 0:00:11.9]} 68... Kg4 {[%clk
0:00:12.4]} 69. Qg3+ {[%clk 0:00:13.8]} 69... Kxh5 {[%clk 0:00:13.7]} 70. Qxf4
{[%clk 0:00:14.8]} 70... Qc3 {[%clk 0:00:10.4]} 71. Qh4+ {[%clk 0:00:14.6]}
71... Kg6 {[%clk 0:00:11.4]} 72. Qg3+ {[%clk 0:00:16.5]} 72... Qxg3+ {[%clk
0:00:10.8]} 73. Bxg3 {[%clk 0:00:18.4]} 73... Kf6 {[%clk 0:00:11.5]} 74. b5
{[%clk 0:00:19.7]} 74... Ke7 {[%clk 0:00:11.7]} 75. b6 {[%clk 0:00:20.8]} 1-0

[Event "*** Titled Tuesday Blitz"]
[Site "Chess.com"]
[Date "2019.05.07"]
[Round "4"]
[White "krzyzan94"]
[Black "Sadikhov_Ulvi"]
[Result "0-1"]
[WhiteElo "2648"]
[BlackElo "2682"]
[TimeControl "180+2"]
[EndTime "14:00:02 PDT"]
[Termination "Sadikhov_Ulvi won by checkmate"]

1. d4 {[%clk 0:03:00.2]} 1... d6 {[%clk 0:03:00.3]} 2. e4 {[%clk 0:03:00.7]}
2... Nf6 {[%clk 0:03:01]} 3. Nc3 {[%clk 0:03:00.1]} 3... e5 {[%clk 0:03:02]} 4.
Nf3 {[%clk 0:02:57]} 4... Nbd7 {[%clk 0:03:02.6]} 5. g4 {[%clk 0:02:58.2]} 5...
Nxg4 {[%clk 0:02:59.9]} 6. Rg1 {[%clk 0:02:58.6]} 6... Ngf6 {[%clk 0:03:01]} 7.
Bc4 {[%clk 0:02:58.6]} 7... h6 {[%clk 0:03:02.2]} 8. Qe2 {[%clk 0:02:58.2]} 8...
c6 {[%clk 0:03:00.3]} 9. Bb3 {[%clk 0:02:57.6]} 9... b5 {[%clk 0:02:49.8]} 10.
dxe5 {[%clk 0:02:48.9]} 10... dxe5 {[%clk 0:02:49.2]} 11. Bd2 {[%clk 0:02:50.2]}
11... a5 {[%clk 0:02:44.6]} 12. a4 {[%clk 0:02:47.4]} 12... b4 {[%clk
0:02:42.9]} 13. Nd1 {[%clk 0:02:44.4]} 13... Nc5 {[%clk 0:02:28.7]} 14. Nxe5
{[%clk 0:02:41.2]} 14... Nxb3 {[%clk 0:02:25.8]} 15. cxb3 {[%clk 0:02:41.3]}
15... Be6 {[%clk 0:02:20.5]} 16. Rc1 {[%clk 0:02:34.9]} 16... Rc8 {[%clk
0:02:05.3]} 17. Rg3 {[%clk 0:02:25.4]} 17... Qd4 {[%clk 0:01:51.5]} 18. Nc4
{[%clk 0:01:58.4]} 18... Qxe4 {[%clk 0:01:47.1]} 19. Nde3 {[%clk 0:01:59.5]}
19... Nd5 {[%clk 0:01:25.6]} 20. Nxd5 {[%clk 0:01:42]} 20... Qxd5 {[%clk
0:01:24.6]} 21. f3 {[%clk 0:01:07.3]} 21... Bc5 {[%clk 0:01:15.9]} 22. Rxg7
{[%clk 0:01:05.7]} 22... Kf8 {[%clk 0:01:16.7]} 23. Rg2 {[%clk 0:01:03.7]} 23...
Re8 {[%clk 0:01:17]} 24. Ne3 {[%clk 0:01:00.9]} 24... Qh5 {[%clk 0:01:10.4]} 25.
f4 {[%clk 0:00:58]} 25... Qh4+ {[%clk 0:01:10.2]} 26. Qf2 {[%clk 0:00:58.6]}
26... Qxf2+ {[%clk 0:00:57.7]} 27. Kxf2 {[%clk 0:01:00.5]} 27... Bd4 {[%clk
0:00:52.5]} 28. Rg3 {[%clk 0:00:57.8]} 28... Bxb3 {[%clk 0:00:47.9]} 29. Rxc6
{[%clk 0:00:57.8]} 29... Bxb2 {[%clk 0:00:45.9]} 30. Nf5 {[%clk 0:00:55.9]}
30... Be6 {[%clk 0:00:44.5]} 31. Be3 {[%clk 0:00:44.3]} 31... Bxf5 {[%clk
0:00:36.6]} 32. Bc5+ {[%clk 0:00:45.2]} 32... Re7 {[%clk 0:00:37.3]} 33. Re3
{[%clk 0:00:46.7]} 33... Bd4 {[%clk 0:00:25.8]} 34. Bxd4 {[%clk 0:00:42.2]}
34... Rxe3 {[%clk 0:00:26.3]} 35. Kxe3 {[%clk 0:00:42.2]} 35... Rg8 {[%clk
0:00:25.9]} 36. Rxh6 {[%clk 0:00:39.4]} 36... Rg6 {[%clk 0:00:21.2]} 37. Rh5
{[%clk 0:00:38.5]} 37... Re6+ {[%clk 0:00:21.3]} 38. Be5 {[%clk 0:00:34.2]}
38... Bg6 {[%clk 0:00:20.2]} 39. Rh8+ {[%clk 0:00:30.5]} 39... Ke7 {[%clk
0:00:21.5]} 40. Kd4 {[%clk 0:00:29.4]} 40... Rb6 {[%clk 0:00:22.5]} 41. Bc7
{[%clk 0:00:27.1]} 41... Rb7 {[%clk 0:00:23.1]} 42. Bxa5 {[%clk 0:00:23.3]}
42... b3 {[%clk 0:00:24.4]} 43. Bc3 {[%clk 0:00:07.7]} 43... b2 {[%clk
0:00:25.5]} 44. Bxb2 {[%clk 0:00:08.8]} 44... Rxb2 {[%clk 0:00:26.8]} 45. h4
{[%clk 0:00:08.2]} 45... Rb4+ {[%clk 0:00:27.6]} 46. Ke5 {[%clk 0:00:08.6]}
46... Rxa4 {[%clk 0:00:28.3]} 47. Rb8 {[%clk 0:00:02.3]} 47... Ra5+ {[%clk
0:00:29.3]} 48. Kd4 {[%clk 0:00:03.7]} 48... Ra4+ {[%clk 0:00:29.7]} 49. Ke3
{[%clk 0:00:04.8]} 49... Kf6 {[%clk 0:00:29.2]} 50. Rb6+ {[%clk 0:00:05.2]}
50... Kg7 {[%clk 0:00:28.8]} 51. Rb5 {[%clk 0:00:05.6]} 51... f5 {[%clk
0:00:25.4]} 52. h5 {[%clk 0:00:03.3]} 52... Re4+ {[%clk 0:00:25.8]} 53. Kf2
{[%clk 0:00:03.5]} 53... Rxf4+ {[%clk 0:00:26.1]} 54. Kg3 {[%clk 0:00:04.6]}
54... Rg4+ {[%clk 0:00:27.3]} 55. Kh3 {[%clk 0:00:06.1]} 55... Bh7 {[%clk
0:00:26.5]} 56. Rb6 {[%clk 0:00:06.3]} 56... Ra4 {[%clk 0:00:25.6]} 57. h6+
{[%clk 0:00:06.9]} 57... Kf7 {[%clk 0:00:26.8]} 58. Kg3 {[%clk 0:00:08]} 58...
Rg4+ {[%clk 0:00:19.9]} 59. Kf3 {[%clk 0:00:08.1]} 59... Bg6 {[%clk 0:00:21.2]}
60. Rb7+ {[%clk 0:00:08.4]} 60... Kg8 {[%clk 0:00:21.9]} 61. Rg7+ {[%clk
0:00:08.7]} 61... Kh8 {[%clk 0:00:23.1]} 62. Ke3 {[%clk 0:00:09.2]} 62... Bh7
{[%clk 0:00:20.4]} 63. Ra7 {[%clk 0:00:07.5]} 63... Rg6 {[%clk 0:00:19.8]} 64.
Kf4 {[%clk 0:00:08.9]} 64... Rxh6 {[%clk 0:00:17.4]} 65. Ra8+ {[%clk 0:00:10.3]}
65... Kg7 {[%clk 0:00:18.7]} 66. Ra7+ {[%clk 0:00:11.5]} 66... Kf8 {[%clk
0:00:19.6]} 67. Ra8+ {[%clk 0:00:11.9]} 67... Kg7 {[%clk 0:00:20.9]} 68. Ra7+
{[%clk 0:00:13.1]} 68... Kg6 {[%clk 0:00:22.4]} 69. Ra6+ {[%clk 0:00:14]} 69...
Kh5 {[%clk 0:00:23.5]} 70. Ra1 {[%clk 0:00:13.1]} 70... Re6 {[%clk 0:00:24.5]}
71. Rh1+ {[%clk 0:00:09.5]} 71... Kg6 {[%clk 0:00:25.5]} 72. Ra1 {[%clk
0:00:08.9]} 72... Kf6 {[%clk 0:00:24.9]} 73. Ra8 {[%clk 0:00:06.7]} 73... Bg6
{[%clk 0:00:25.7]} 74. Rf8+ {[%clk 0:00:06.4]} 74... Bf7 {[%clk 0:00:26.1]} 75.
Ra8 {[%clk 0:00:08.3]} 75... Re4+ {[%clk 0:00:26.1]} 76. Kf3 {[%clk 0:00:10.2]}
76... Kg5 {[%clk 0:00:26.3]} 77. Kg3 {[%clk 0:00:11.6]} 77... f4+ {[%clk
0:00:27.2]} 78. Kf3 {[%clk 0:00:12.8]} 78... Re3+ {[%clk 0:00:28.6]} 79. Kf2
{[%clk 0:00:13.8]} 79... Kg4 {[%clk 0:00:28.1]} 80. Rf8 {[%clk 0:00:14.1]} 80...
Bc4 {[%clk 0:00:25.3]} 81. Rf6 {[%clk 0:00:14]} 81... Re2+ {[%clk 0:00:26.2]}
82. Kg1 {[%clk 0:00:14.5]} 82... Kf3 {[%clk 0:00:24.9]} 83. Rc6 {[%clk
0:00:13.7]} 83... Bd5 {[%clk 0:00:25]} 84. Rc3+ {[%clk 0:00:13.8]} 84... Re3
{[%clk 0:00:26.2]} 85. Rc1 {[%clk 0:00:15]} 85... Kg3 {[%clk 0:00:26.1]} 86. Rf1
{[%clk 0:00:11.6]} 86... f3 {[%clk 0:00:24.5]} 87. Rd1 {[%clk 0:00:03.7]} 87...
f2+ {[%clk 0:00:25.4]} 88. Kf1 {[%clk 0:00:05.6]} 88... Bg2# {[%clk 0:00:26.5]}
0-1

[Event "*** Titled Tuesday Blitz"]
[Site "Chess.com"]
[Date "2019.05.07"]
[Round "4"]
[White "TristanCalistri"]
[Black "dopolian"]
[Result "0-1"]
[WhiteElo "2179"]
[BlackElo "2247"]
[TimeControl "180+2"]
[EndTime "14:00:06 PDT"]
[Termination "dopolian won on time"]

1. e4 {[%clk 0:03:01.9]} 1... e5 {[%clk 0:02:59.8]} 2. Nf3 {[%clk 0:03:02.2]}
2... Nc6 {[%clk 0:03:00.8]} 3. Bc4 {[%clk 0:03:00.4]} 3... Bc5 {[%clk
0:03:01.7]} 4. c3 {[%clk 0:03:01]} 4... Nf6 {[%clk 0:03:02.7]} 5. d3 {[%clk
0:03:01.8]} 5... O-O {[%clk 0:03:03.2]} 6. O-O {[%clk 0:03:02.7]} 6... d5 {[%clk
0:03:04.8]} 7. exd5 {[%clk 0:03:03]} 7... Nxd5 {[%clk 0:03:06.7]} 8. Nbd2 {[%clk
0:03:01.2]} 8... Bg4 {[%clk 0:03:03.5]} 9. h3 {[%clk 0:03:00.7]} 9... Bh5 {[%clk
0:03:03.6]} 10. Ne4 {[%clk 0:03:02.2]} 10... Bb6 {[%clk 0:03:04.5]} 11. Ng3
{[%clk 0:03:03.2]} 11... Bg6 {[%clk 0:03:05]} 12. Re1 {[%clk 0:03:04.5]} 12...
f6 {[%clk 0:02:49.8]} 13. d4 {[%clk 0:03:04.9]} 13... exd4 {[%clk 0:02:48.9]}
14. cxd4 {[%clk 0:02:28.5]} 14... Qd7 {[%clk 0:02:45.5]} 15. Nh4 {[%clk
0:02:22.4]} 15... Bf7 {[%clk 0:02:45.2]} 16. Nhf5 {[%clk 0:02:23.4]} 16... Rfe8
{[%clk 0:02:39.9]} 17. Be3 {[%clk 0:02:07.8]} 17... Kh8 {[%clk 0:02:29.7]} 18.
Rc1 {[%clk 0:01:50.3]} 18... Nxe3 {[%clk 0:02:08.2]} 19. fxe3 {[%clk 0:01:48.3]}
19... Bxc4 {[%clk 0:02:08.4]} 20. Rxc4 {[%clk 0:01:50.2]} 20... g6 {[%clk
0:02:02.8]} 21. Nh4 {[%clk 0:01:50.4]} 21... Re7 {[%clk 0:01:53.9]} 22. Nf3
{[%clk 0:01:48.2]} 22... Rae8 {[%clk 0:01:53.6]} 23. Qd2 {[%clk 0:01:25]} 23...
Qd5 {[%clk 0:01:39.9]} 24. Qd3 {[%clk 0:01:12.6]} 24... Rxe3 {[%clk 0:01:19.7]}
25. Rxe3 {[%clk 0:01:11.7]} 25... Rxe3 {[%clk 0:01:21.6]} 26. Qxe3 {[%clk
0:01:11.7]} 26... Qxc4 {[%clk 0:01:22.7]} 27. Qe8+ {[%clk 0:01:08.2]} 27... Qg8
{[%clk 0:01:23.2]} 28. Qe4 {[%clk 0:01:06.3]} 28... Qd8 {[%clk 0:01:19.2]} 29.
Kh2 {[%clk 0:00:59.3]} 29... Nxd4 {[%clk 0:01:14.1]} 30. Nd2 {[%clk 0:00:54]}
30... c6 {[%clk 0:01:10.2]} 31. Kh1 {[%clk 0:00:44.3]} 31... Bc7 {[%clk
0:01:05]} 32. Ngf1 {[%clk 0:00:45]} 32... Nf5 {[%clk 0:01:02.2]} 33. Qe6 {[%clk
0:00:41.2]} 33... Kg7 {[%clk 0:00:49.4]} 34. Ne4 {[%clk 0:00:38.5]} 34... Qe7
{[%clk 0:00:47.3]} 35. Qc4 {[%clk 0:00:37]} 35... Be5 {[%clk 0:00:40.5]} 36. Nc5
{[%clk 0:00:37.4]} 36... Nd6 {[%clk 0:00:34.1]} 37. Qb3 {[%clk 0:00:32.7]} 37...
b6 {[%clk 0:00:32.7]} 38. Ne6+ {[%clk 0:00:33.5]} 38... Kh8 {[%clk 0:00:33.8]}
39. Ne3 {[%clk 0:00:31.8]} 39... Ne4 {[%clk 0:00:31]} 40. Ng4 {[%clk 0:00:26.7]}
40... Nc5 {[%clk 0:00:21.7]} 41. Nxc5 {[%clk 0:00:27.1]} 41... Qxc5 {[%clk
0:00:23]} 42. Qd1 {[%clk 0:00:18.8]} 42... Qe7 {[%clk 0:00:21.6]} 43. b3 {[%clk
0:00:18.7]} 43... Bc7 {[%clk 0:00:17.9]} 44. Qa1 {[%clk 0:00:14.7]} 44... Kg7
{[%clk 0:00:17.9]} 45. Qc3 {[%clk 0:00:14.2]} 45... Qd6 {[%clk 0:00:18.1]} 46.
Kg1 {[%clk 0:00:14]} 46... h5 {[%clk 0:00:17.7]} 47. Nf2 {[%clk 0:00:14.3]}
47... c5 {[%clk 0:00:12.8]} 48. Qf3 {[%clk 0:00:14.3]} 48... Qh2+ {[%clk
0:00:12.3]} 49. Kf1 {[%clk 0:00:14.8]} 49... Qe5 {[%clk 0:00:13.7]} 50. Qc6
{[%clk 0:00:14.6]} 50... Kh6 {[%clk 0:00:13]} 51. Qb7 {[%clk 0:00:15]} 51... a5
{[%clk 0:00:13.2]} 52. Qc8 {[%clk 0:00:15.3]} 52... Qa1+ {[%clk 0:00:08.7]} 53.
Ke2 {[%clk 0:00:15.9]} 53... Qxa2+ {[%clk 0:00:10.2]} 54. Kf1 {[%clk 0:00:16.4]}
54... Qb1+ {[%clk 0:00:11.5]} 55. Ke2 {[%clk 0:00:17.4]} 55... Qc2+ {[%clk
0:00:12.9]} 56. Kf1 {[%clk 0:00:18.3]} 56... Qc1+ {[%clk 0:00:14.2]} 57. Ke2
{[%clk 0:00:19.6]} 57... Qb2+ {[%clk 0:00:14.6]} 58. Kf1 {[%clk 0:00:20.6]}
58... Qa1+ {[%clk 0:00:14.7]} 59. Ke2 {[%clk 0:00:21.4]} 59... Qe5+ {[%clk
0:00:16.4]} 60. Kf1 {[%clk 0:00:22.2]} 60... f5 {[%clk 0:00:14.2]} 61. Qf8+
{[%clk 0:00:22.9]} 61... Qg7 {[%clk 0:00:14.3]} 62. Qc8 {[%clk 0:00:21.3]} 62...
Kh7 {[%clk 0:00:13]} 63. Qe6 {[%clk 0:00:20.9]} 63... b5 {[%clk 0:00:07.6]} 64.
h4 {[%clk 0:00:22]} 64... a4 {[%clk 0:00:07.7]} 65. Nh3 {[%clk 0:00:22.9]} 65...
Bd8 {[%clk 0:00:06.2]} 66. g3 {[%clk 0:00:18]} 66... axb3 {[%clk 0:00:06.1]} 67.
Qxb3 {[%clk 0:00:18.4]} 67... Qa1+ {[%clk 0:00:07.3]} 68. Kg2 {[%clk 0:00:18.5]}
68... Qa6 {[%clk 0:00:03.8]} 69. Qd5 {[%clk 0:00:18.1]} 69... Bf6 {[%clk
0:00:04.4]} 70. Nf4 {[%clk 0:00:17.9]} 70... Qa7 {[%clk 0:00:03.5]} 71. Qc6
{[%clk 0:00:14.8]} 71... Bg7 {[%clk 0:00:04.7]} 72. Qxg6+ {[%clk 0:00:14.3]}
72... Kg8 {[%clk 0:00:05.4]} 73. Qe8+ {[%clk 0:00:13.4]} 73... Bf8 {[%clk
0:00:04.4]} 74. Qxh5 {[%clk 0:00:12.5]} 74... Qb7+ {[%clk 0:00:05.1]} 75. Kh3
{[%clk 0:00:12.5]} 75... Qf7 {[%clk 0:00:06.9]} 76. Qg5+ {[%clk 0:00:12.2]}
76... Bg7 {[%clk 0:00:07.6]} 77. Qd8+ {[%clk 0:00:12.6]} 77... Kh7 {[%clk
0:00:09]} 78. h5 {[%clk 0:00:09.9]} 78... Bf6 {[%clk 0:00:10]} 79. Qd3 {[%clk
0:00:08.8]} 79... Be5 {[%clk 0:00:07.1]} 80. Ng6 {[%clk 0:00:08]} 80... c4
{[%clk 0:00:06.9]} 81. Qd8 {[%clk 0:00:05.6]} 81... Bf6 {[%clk 0:00:07.3]} 82.
Qb6 {[%clk 0:00:05.8]} 82... c3 {[%clk 0:00:05.1]} 83. Qxb5 {[%clk 0:00:05.9]}
83... Bg5 {[%clk 0:00:05.7]} 84. Qc6 {[%clk 0:00:04.3]} 84... Bd2 {[%clk
0:00:04.7]} 0-1

[Event "*** Titled Tuesday Blitz"]
[Site "Chess.com"]
[Date "2019.05.07"]
[Round "5"]
[White "Jadeit90"]
[Black "LastHeroJr"]
[Result "0-1"]
[WhiteElo "2377"]
[BlackElo "2484"]
[TimeControl "180+2"]
[EndTime "14:02:52 PDT"]
[Termination "LastHeroJr won by resignation"]

1. g3 {[%clk 0:02:54.9]} 1... e5 {[%clk 0:02:59.2]} 2. Bg2 {[%clk 0:02:56.1]}
2... d5 {[%clk 0:02:58.3]} 3. c4 {[%clk 0:02:57.4]} 3... Nf6 {[%clk 0:02:56.6]}
4. cxd5 {[%clk 0:02:58.6]} 4... Nxd5 {[%clk 0:02:58.5]} 5. Nc3 {[%clk
0:02:59.9]} 5... Nb6 {[%clk 0:02:59.2]} 6. Nf3 {[%clk 0:03:01.2]} 6... Nc6
{[%clk 0:03:00.6]} 7. O-O {[%clk 0:03:02.4]} 7... Be7 {[%clk 0:03:02]} 8. a4
{[%clk 0:03:03.6]} 8... a5 {[%clk 0:02:54.4]} 9. d4 {[%clk 0:03:02]} 9... exd4
{[%clk 0:02:48.9]} 10. Nb5 {[%clk 0:03:03.1]} 10... Bf6 {[%clk 0:02:43.8]} 11.
Bf4 {[%clk 0:03:02.8]} 11... Nd5 {[%clk 0:02:44.3]} 12. Nfxd4 {[%clk 0:02:34.4]}
12... Nxd4 {[%clk 0:02:30.4]} 13. Nxd4 {[%clk 0:02:34.2]} 13... Nxf4 {[%clk
0:02:28.3]} 0-1

[Event "*** Titled Tuesday Blitz"]
[Site "Chess.com"]
[Date "2019.05.07"]
[Round "5"]
[White "Eliwood44"]
[Black "dsanchez1973"]
[Result "1-0"]
[WhiteElo "2235"]
[BlackElo "2048"]
[TimeControl "180+2"]
[EndTime "14:04:06 PDT"]
[Termination "Eliwood44 won by resignation"]

1. d4 {[%clk 0:03:01.9]} 1... d5 {[%clk 0:03:01]} 2. Nf3 {[%clk 0:03:02.4]} 2...
c6 {[%clk 0:03:02.4]} 3. c4 {[%clk 0:03:02.8]} 3... e6 {[%clk 0:03:03.1]} 4. Bf4
{[%clk 0:03:00.4]} 4... Nd7 {[%clk 0:03:02.9]} 5. Nbd2 {[%clk 0:02:59.3]} 5...
Ngf6 {[%clk 0:03:03.1]} 6. h3 {[%clk 0:02:59.1]} 6... Be7 {[%clk 0:03:02.9]} 7.
e3 {[%clk 0:03:00.5]} 7... O-O {[%clk 0:03:03.6]} 8. Be2 {[%clk 0:02:57.9]} 8...
Re8 {[%clk 0:03:04.8]} 9. O-O {[%clk 0:02:58.5]} 9... Nf8 {[%clk 0:03:05.2]} 10.
Rc1 {[%clk 0:02:54.8]} 10... dxc4 {[%clk 0:03:02]} 11. Nxc4 {[%clk 0:02:53]}
11... Nd5 {[%clk 0:03:02.1]} 12. Bh2 {[%clk 0:02:53.4]} 12... Ng6 {[%clk
0:02:55.9]} 13. Qd2 {[%clk 0:02:38]} 13... b5 {[%clk 0:02:49.5]} 14. Nce5 {[%clk
0:02:38]} 14... Nxe5 {[%clk 0:02:48.2]} 15. Nxe5 {[%clk 0:02:39.9]} 15... Bb7
{[%clk 0:02:39.1]} 16. Nxc6 {[%clk 0:02:35.6]} 16... Qb6 {[%clk 0:02:40.1]} 17.
Nxe7+ {[%clk 0:02:32.6]} 17... Rxe7 {[%clk 0:02:41.2]} 18. Rc5 {[%clk
0:02:31.2]} 18... Nf6 {[%clk 0:02:35.4]} 19. Rfc1 {[%clk 0:02:24]} 19... Ne4
{[%clk 0:02:34.4]} 20. Qb4 {[%clk 0:02:00.7]} 20... Nxc5 {[%clk 0:02:35]} 21.
dxc5 {[%clk 0:02:01.9]} 21... Qc6 {[%clk 0:02:27.5]} 22. Bf3 {[%clk 0:02:02.4]}
22... Qc8 {[%clk 0:02:28.1]} 23. c6 {[%clk 0:02:02.9]} 23... Ba6 {[%clk
0:02:28.7]} 24. Qxe7 {[%clk 0:02:03.6]} 1-0

[Event "*** Titled Tuesday Blitz"]
[Site "Chess.com"]
[Date "2019.05.07"]
[Round "5"]
[White "BvsN"]
[Black "Micki-taryan"]
[Result "0-1"]
[WhiteElo "2291"]
[BlackElo "3022"]
[TimeControl "180+2"]
[EndTime "14:04:32 PDT"]
[Termination "Micki-taryan won by resignation"]

1. d4 {[%clk 0:03:01.9]} 1... Nf6 {[%clk 0:02:58.2]} 2. c4 {[%clk 0:03:02.4]}
2... g6 {[%clk 0:03:00.1]} 3. Nc3 {[%clk 0:03:02.8]} 3... Bg7 {[%clk 0:03:02]}
4. e4 {[%clk 0:03:03.7]} 4... O-O {[%clk 0:03:03.9]} 5. Nge2 {[%clk 0:03:04.2]}
5... c5 {[%clk 0:03:04.7]} 6. d5 {[%clk 0:03:04]} 6... e6 {[%clk 0:03:06.3]} 7.
Ng3 {[%clk 0:02:58.4]} 7... exd5 {[%clk 0:03:07.2]} 8. cxd5 {[%clk 0:02:58.9]}
8... h5 {[%clk 0:03:08.7]} 9. Bg5 {[%clk 0:02:49.2]} 9... Re8 {[%clk 0:03:09.5]}
10. Be2 {[%clk 0:02:25.2]} 10... d6 {[%clk 0:03:10.1]} 11. O-O {[%clk
0:02:13.5]} 11... a6 {[%clk 0:03:10.2]} 12. a4 {[%clk 0:02:14]} 12... Qc7 {[%clk
0:03:09.4]} 13. Qd2 {[%clk 0:02:05.1]} 13... Nbd7 {[%clk 0:03:08]} 14. f3 {[%clk
0:01:55.5]} 14... Nh7 {[%clk 0:03:07.3]} 15. Bh6 {[%clk 0:01:49.7]} 15... Bd4+
{[%clk 0:03:07]} 16. Be3 {[%clk 0:01:50.6]} 16... Bxe3+ {[%clk 0:03:07.2]} 17.
Qxe3 {[%clk 0:01:51.7]} 17... h4 {[%clk 0:03:09.1]} 18. Nh1 {[%clk 0:01:51.4]}
18... Rb8 {[%clk 0:03:10.5]} 19. Nf2 {[%clk 0:01:47.7]} 19... Ndf6 {[%clk
0:03:10.1]} 20. Qd2 {[%clk 0:01:30.5]} 20... Bd7 {[%clk 0:03:09.6]} 21. Rac1
{[%clk 0:01:13.3]} 21... Qd8 {[%clk 0:03:07.6]} 22. f4 {[%clk 0:01:08.5]} 22...
b5 {[%clk 0:03:07.5]} 23. axb5 {[%clk 0:01:07.3]} 23... axb5 {[%clk 0:03:09.4]}
24. Bd3 {[%clk 0:00:59.8]} 24... c4 {[%clk 0:03:09.6]} 25. Ne2 {[%clk
0:00:59.8]} 25... cxd3 {[%clk 0:03:10.2]} 0-1

[Event "*** Titled Tuesday Blitz"]
[Site "Chess.com"]
[Date "2019.05.07"]
[Round "5"]
[White "zurzan"]
[Black "Komissarov_alex"]
[Result "0-1"]
[WhiteElo "1991"]
[BlackElo "2125"]
[TimeControl "180+2"]
[EndTime "14:04:42 PDT"]
[Termination "Komissarov_alex won by resignation"]

1. e4 {[%clk 0:03:01.9]} 1... e5 {[%clk 0:02:49]} 2. Nf3 {[%clk 0:03:01.7]} 2...
Nc6 {[%clk 0:02:47.4]} 3. Bc4 {[%clk 0:03:02.1]} 3... Nf6 {[%clk 0:02:45.2]} 4.
d3 {[%clk 0:03:02.5]} 4... d5 {[%clk 0:02:43.3]} 5. exd5 {[%clk 0:03:01.7]} 5...
Nxd5 {[%clk 0:02:42.4]} 6. O-O {[%clk 0:03:02.3]} 6... Bc5 {[%clk 0:02:40.1]} 7.
Nc3 {[%clk 0:02:59.5]} 7... Nxc3 {[%clk 0:02:38.2]} 8. bxc3 {[%clk 0:03:00.1]}
8... O-O {[%clk 0:02:37.3]} 9. Nxe5 {[%clk 0:02:47.9]} 9... Nxe5 {[%clk
0:02:32.8]} 10. Bb3 {[%clk 0:02:41.5]} 10... Bg4 {[%clk 0:02:30.5]} 11. Qd2
{[%clk 0:02:35]} 11... Qh4 {[%clk 0:02:15.6]} 12. d4 {[%clk 0:02:22.3]} 12...
Nf3+ {[%clk 0:01:58.7]} 13. gxf3 {[%clk 0:02:23]} 13... Bd6 {[%clk 0:01:55.9]}
14. f4 {[%clk 0:02:04]} 14... Bf3 {[%clk 0:01:47.6]} 0-1